Cogmind - Beta 16 @@@ ROGUE MODE // 2025.10.31 @ 15:33:02 Player: ZLD1 Result: Destroyed by S-10 Pest with Light Assault Rifle Performance ------------- Evolutions (0) 0 Regions Visited (4) 800 Robots Destroyed (0) 0 Value Destroyed (0) 0 Prototype IDs (23) 460 Alien Tech Used (0) 0 Bonus (300) 300 TOTAL SCORE: 1560 Bonus ------- Aligned with FarCom 300 Cogmind --------- Core Integrity 0/250 Matter 300/300 Energy 100/100 System Corruption 0% Temperature Cool (0) Movement Walking (120) Location -9/Mines Parts ------- > --- POWER (1) -------- (None) > --- PROPULSION (2) --- Aluminum Leg Aluminum Leg > --- UTILITY (2) ------ Medium Storage Unit > --- WEAPON (2) ------- (None) > --- INVENTORY (10) --- Improved Deuterium Engine Flying Fortress v7 Microactuators Force Booster EM Disruption Field Improved Shield Generator Peak State ------------ > --- POWER ------------ Ion Engine > --- PROPULSION ------- Aluminum Leg Aluminum Leg > --- UTILITY ---------- Medium Storage Unit > --- WEAPON ----------- (None) > --- INVENTORY -------- Improved Deuterium Engine Flying Fortress v7 Microactuators Force Booster EM Disruption Field Improved Shield Generator [Rating: 9] Favorites ----------- Power Ion Engine Engine Ion Engine Propulsion Aluminum Leg Leg Aluminum Leg Utility Medium Storage Unit Storage Medium Storage Unit Weapon None Build | -11 -10 -10 -10 -9 ------- Run | Yrd Mat Min Exi Min Slots Evolved . | . . . . . Power . | . . . . . Propulsion . | . . . . . Utility . | . . . . . Weapon . | . . . . . Parts Attached 5 | . . . 5 . Power 1 | . . . 1 . Engine 1 | . . . 1 . Core . | . . . . . Reactor . | . . . . . Propulsion 2 | . . . 2 . Treads . | . . . . . Leg 2 | . . . 2 . Wheel . | . . . . . Hover . | . . . . . Flight . | . . . . . Utility 2 | . . . 2 . Device . | . . . . . Storage 2 | . . . 2 . Processor . | . . . . . Hackware . | . . . . . Protection . | . . . . . Artifact . | . . . . . Weapon . | . . . . . Energy Gun . | . . . . . Energy Cannon . | . . . . . Ballistic Gun . | . . . . . Ballistic Cannon . | . . . . . Launcher . | . . . . . Special Weapon . | . . . . . Impact Weapon . | . . . . . Slashing Weapon . | . . . . . Piercing Weapon . | . . . . . Special Melee Weapon . | . . . . . Unidentified Prototypes . | . . . . . Parts Lost 1 | . . . . 1 Power 1 | . . . . 1 Propulsion . | . . . . . Utility . | . . . . . Weapon . | . . . . . Highest Loss Streak 1 | . . . . 1 To Critical Strikes . | . . . . . Average Backups 3 | 2 4 4 1 5 Power . | . 1 1 . . Propulsion 1 | 1 2 2 1 1 Utility 1 | . 1 1 . 3 Weapon . | . . . . . Tool/Special . | . . . . . Unused Backups 6 | . . . . 6 Power 1 | . . . . 1 Propulsion 1 | . . . . 1 Utility 4 | . . . . 4 Weapon . | . . . . . Tool/Special . | . . . . . Average Slot Usage (%) 37 | . . . 38 56 Engine 9 | . . . 9 13 Leg 18 | . . . 18 28 Storage 9 | . . . 9 14 Peak Build Rating 9 | . . . 7 9 Average Rating 5 | . . . 4 8 On Entrance 1 | . . . . 7 Avg Prop Armor Cover (%) . | . . . . . Naked Turns 300 | . 74 146 80 . Heaviest Build 15 | . . . 15 15 Greatest Support 20 | 3 3 3 20 20 Greatest Overweight (x) . | . . . . . Average Overweight (x) . | . . . . . Largest Inventory Capacity 10 | 5 5 5 10 10 Average Capacity 8 | 5 5 5 7 10 Most Carried 9 | 4 4 4 5 9 Average Carried 5 | 2 4 4 3 8 Final Capacity 10 | 5 5 5 10 10 Final Carried 9 | 4 4 4 4 9 Class Distribution -------------------- 100% | Mutant Dominant Class ---------------- Mutant | -10/Materials Mutant | -10/Mines Mutant | -10/Exiles Mutant | -9/Mines Resources | -11 -10 -10 -10 -9 ----------- Run | Yrd Mat Min Exi Min Matter Collected 250 | 69 . 131 . 50 Remotely . | . . . . . Salvage Created . | . . . . . Parts . | . . . . . Haulers Intercepted . | . . . . . Recyclers Shooed . | . . . . . Parts Field Recycled . | . . . . . Retrieved Matter . | . . . . . Parts Self-Destructed . | . . . . . Prevented . | . . . . . Parts Restored . | . . . . . Kills | -11 -10 -10 -10 -9 ------- Run | Yrd Mat Min Exi Min Combat Hostiles Destroyed . | . . . . . Classes Destroyed . | . . . . . Best Kill Streak . | . . . . . Combat Bots Only . | . . . . . Max Kills in Single Turn . | . . . . . Gunslinging . | . . . . . Exploded . | . . . . . Melee . | . . . . . Uniques/NPCs Destroyed . | . . . . . Combat | -11 -10 -10 -10 -9 -------- Run | Yrd Mat Min Exi Min Hostile Shots Fired 75 | . 35 . . 40 Missed 26 | . 15 . . 11 Hits 49 | . 20 . . 29 Projectile 49 | . 20 . . 29 Damage Taken 492 | . 151 . . 341 Core 254 | . 151 . . 103 Absorbed by Shields . | . . . . . Core Remaining (%) 100 | 100 . . . . Volleys Fired . | . . . . . Largest . | . . . . . Hottest . | . . . . . Shots Fired . | . . . . . Gun . | . . . . . Cannon . | . . . . . Launcher . | . . . . . Special . | . . . . . Kinetic . | . . . . . Thermal . | . . . . . Explosive . | . . . . . Electromagnetic . | . . . . . Robot Hit Streak . | . . . . . Robot Miss Streak . | . . . . . Penetration Max . | . . . . . Secondary Targets . | . . . . . Shots Hit Robots . | . . . . . Core Hits 2 | . . . . 2 Critical Kills . | . . . . . Critical Parts Destroyed . | . . . . . Critical Strikes . | . . . . . Melee Attacks . | . . . . . Impact . | . . . . . Slashing . | . . . . . Piercing . | . . . . . Sneak Attacks . | . . . . . Combat Hostiles . | . . . . . Follow-up Attacks . | . . . . . Damage Inflicted 49 | . . . . 49 Guns . | . . . . . Cannons . | . . . . . Explosions . | . . . . . Melee . | . . . . . Ramming 49 | . . . . 49 Kinetic . | . . . . . Thermal . | . . . . . Explosive . | . . . . . Electromagnetic . | . . . . . Impact . | . . . . . Slashing . | . . . . . Piercing . | . . . . . Highest Corruption . | . . . . . Average Corruption . | . . . . . Corruption Purged . | . . . . . Corruption Blocked . | . . . . . Overload Shots . | . . . . . Overflow Damage . | . . . . . Projectiles . | . . . . . Explosions . | . . . . . Melee . | . . . . . Knockbacks . | . . . . . Impact . | . . . . . Kinetic . | . . . . . Secondary . | . . . . . Self-Inflicted Damage . | . . . . . Shots . | . . . . . Rammed . | . . . . . Targets Rammed 12 | . . . . 12 Kicked 12 | . . . . 12 Crushed . | . . . . . Highest Temperature . | . . . . . Average Temperature . | . . . . . Received Heat Transfer 120 | . . . . 120 Siege Activations . | . . . . . Martial Activations . | . . . . . Shielding Activations . | . . . . . Robots Disrupted . | . . . . . Combat Hostiles . | . . . . . Robots Corrupted . | . . . . . Combat Hostiles . | . . . . . Parts Fried . | . . . . . Impact Corruptions . | . . . . . Robots Melted . | . . . . . Combat Hostiles . | . . . . . Parts Melted . | . . . . . Heat Transferred . | . . . . . Parts Sabotaged . | . . . . . Parts Stolen . | . . . . . Parts Stripped . | . . . . . Power Chain Reactions . | . . . . . Alert | -11 -10 -10 -10 -9 ------- Run | Yrd Mat Min Exi Min Maximum Alert Level . | . . . . . Low Security (%) 100 | 100 100 100 . 100 Level 1 . | . . . . . Level 2 . | . . . . . Level 3 . | . . . . . Level 4 . | . . . . . Level 5 . | . . . . . High Security . | . . . . . Max Security . | . . . . . Peak Influence 75 | . 75 28 . 65 Initial 28 | . . 28 . . Average 14 | . 4 7 . 18 Influence Increases 210 | . 75 . . 135 Partial Spotted 30 | . 15 . . 15 Lose Combat Pursuer 180 | . 60 . . 120 Influence Decreases 207 | . . 75 . 132 Entered New Map 47 | . . 47 . . Time Decay 150 | . . 28 . 122 Lost Part 10 | . . . . 10 Squads Dispatched 1 | . . . . 1 Investigation 1 | . . . . 1 Extermination . | . . . . . Reinforcement . | . . . . . Assault . | . . . . . Garrison . | . . . . . Intercept . | . . . . . Searches Triggered . | . . . . . Construction Impeded . | . . . . . Haulers Reinforced . | . . . . . Active Scanning Responses . | . . . . . Cargo Convoy Interrupts . | . . . . . Stealth | -11 -10 -10 -10 -9 --------- Run | Yrd Mat Min Exi Min Distress Signals 1 | . 1 . . . Communications Jammed . | . . . . . Distress Signals . | . . . . . Times Spotted 25 | . 9 . . 16 Peak Tracking Total 9 | . 9 . . 7 Tactical Retreats 5 | . 1 . . 4 Traps | -11 -10 -10 -10 -9 ------- Run | Yrd Mat Min Exi Min Traps Triggered 1 | . 1 . . . Indirectly . | . . . . . Trap Hack Attempts . | . . . . . Triggered . | . . . . . Disarmed . | . . . . . Reprogrammed . | . . . . . Reused . | . . . . . Traps Extracted . | . . . . . Installed . | . . . . . Triggered . | . . . . . Machines | -11 -10 -10 -10 -9 ---------- Run | Yrd Mat Min Exi Min Machines Disabled . | . . . . . Max in Single Turn . | . . . . . Machines Repaired . | . . . . . Machines Dismantled . | . . . . . Machines Sabotaged . | . . . . . Overloaded Fab Kills . | . . . . . Hacking | -11 -10 -10 -10 -9 --------- Run | Yrd Mat Min Exi Min Machines Accessed 7 | . . . 4 3 Terminals . | . . . . . Fabricators . | . . . . . Repair Stations . | . . . . . Recycling Units . | . . . . . Scanalyzers . | . . . . . Garrison Access . | . . . . . Total Hacks 9 | . . . 6 3 Successful 9 | . . . 6 3 Failed . | . . . . . Catastrophic . | . . . . . Database Lockouts . | . . . . . Manual 1 | . . . 1 . Terminals . | . . . . . Fabricators . | . . . . . Repair Stations . | . . . . . Recycling Units . | . . . . . Scanalyzers . | . . . . . Garrison Access . | . . . . . Terminal Hacks 9 | . . . 6 3 Record 5 | . . . 5 . Open Door 3 | . . . . 3 Proto ID Catalog 1 | . . . 1 . Fabricator Hacks . | . . . . . Repair Station Hacks . | . . . . . Recycling Unit Hacks . | . . . . . Scanalyzer . | . . . . . Garrison Access Hacks . | . . . . . Unauthorized Hacks . | . . . . . Terminals . | . . . . . Fabricators . | . . . . . Repair Stations . | . . . . . Recycling Units . | . . . . . Scanalyzers . | . . . . . Garrison Access . | . . . . . Data Cores Recovered . | . . . . . Used . | . . . . . Hacking Detections . | . . . . . Full Trace Events . | . . . . . Feedback Events . | . . . . . Feedback Blocked . | . . . . . Robot Schematics Acquired . | . . . . . Robots Built . | . . . . . Authchips . | . . . . . Time . | . . . . . Total Robot Build Rating . | . . . . . Part Schematics Acquired . | . . . . . Parts Built . | . . . . . Authchips . | . . . . . Time . | . . . . . Total Part Build Rating . | . . . . . Part Studies Acquired . | . . . . . Parts Repaired . | . . . . . Time . | . . . . . Parts Recycled . | . . . . . Recycled Matter . | . . . . . Retrieved Matter . | . . . . . Retrieved Components . | . . . . . Parts Scanalyzed . | . . . . . Part Schematics Acquired . | . . . . . Parts Damaged . | . . . . . Bothacking | -11 -10 -10 -10 -9 ------------ Run | Yrd Mat Min Exi Min Used RIF Installer . | . . . . . Robots Hacked . | . . . . . Non-combat . | . . . . . Combat . | . . . . . Robot Hacks Applied . | . . . . . Relay Couplers Released . | . . . . . Fabnet Peak Effective % . | . . . . . Robots Rewired . | . . . . . Allies Hacked . | . . . . . Hacks Repelled . | . . . . . Allies | -11 -10 -10 -10 -9 -------- Run | Yrd Mat Min Exi Min Total Allies 2 | . . 2 . . Largest Group 2 | . . 2 . . Highest-Rated Group 42 | . . 42 . . Highest-Rated Ally 31 | . . 31 . . Total Orders . | . . . . . Ally Attacks . | . . . . . Total Damage . | . . . . . Kills . | . . . . . Allies Corrupted . | . . . . . Allies Melted . | . . . . . Intel | -11 -10 -10 -10 -9 ------- Run | Yrd Mat Min Exi Min Active Infowar (turns) . | . . . . . Robot Analysis Total . | . . . . . Derelict Logs Recovered 1 | . . 1 . . Drone Launches . | . . . . . Drone Recoveries . | . . . . . Exploration | -11 -10 -10 -10 -9 ------------- Run | Yrd Mat Min Exi Min Turns Passed 971 | 21 74 146 261 469 Spaces Moved 1127 | 34 148 269 304 372 Core 610 | 34 148 269 159 . Treads . | . . . . . Legs 517 | . . . 145 372 Wheels . | . . . . . Hover . | . . . . . Flight . | . . . . . Fastest Speed 50 | 50 50 50 50 120 Average Speed 82 | 50 50 50 83 120 Slowest Speed 120 | 50 50 50 120 120 Overloaded Moves . | . . . . . Propulsion Burnouts . | . . . . . Robots Hopped . | . . . . . Potential Cave-ins . | . . . . . Cave-ins Triggered . | . . . . . Exploration Rate (%) 47 | 3 40 63 61 68 Regions Visited 4 Branch Regions 3 Pre-discovered Areas . | . . . . . Known Exits Taken . | . . . . . Unknown Exits Taken 4 | 1 1 1 1 . Scrap Searched 2 | . . 1 . 1 Spaces Dug . | . . . . . Terrain Destroyed . | . . . . . Melee . | . . . . . Projectile . | . . . . . AOE . | . . . . . Terrain Rammed . | . . . . . Walls Destroyed . | . . . . . Machines Disabled . | . . . . . Actions | -11 -10 -10 -10 -9 --------- Run | Yrd Mat Min Exi Min Total 1166 | 37 147 279 311 392 Wait 14 | . . 11 . 3 Move 1123 | 33 147 268 303 372 Hop . | . . . . . Pick Up 11 | 4 . . 2 5 Fast Attach . | . . . . . Attach 4 | . . . 4 . Detach . | . . . . . Swap 1 | . . . 1 . Drop 1 | . . . 1 . Fire . | . . . . . Melee . | . . . . . Ram . | . . . . . Kick 12 | . . . . 12 Crush . | . . . . . Escape Stasis . | . . . . . Rewire . | . . . . . Trap . | . . . . . Miscellaneous . | . . . . . Route ------- -11/Scrapyard -10/Materials -10/Mines (discovered 2 exits: [*Mat] / *Exi) -10/Exiles -9/Mines History --------- Turn | Location | Event 3 | -11/Scrapyard | Discovered new exit (range 15) 22 | -11/Scrapyard | Entered Materials 89 | -10/Materials | Discovered new exit (range 14) 92 | -10/Materials | Core integrity fell below 50% 96 | -10/Materials | Entered Mines 117 | -10/Mines | Assembled infested the area 168 | -10/Mines | Met 8R-AWN 229 | -10/Mines | Learned Materials emergency access door positions 230 | -10/Mines | Discovered new exit (range 5) 239 | -10/Mines | Discovered new exit (range 5) 242 | -10/Mines | Entered Exiles 255 | -10/Exiles | Welcomed by 8R-AWN 264 | -10/Exiles | Met EX-HEX 277 | -10/Exiles | Met EX-BIN 284 | -10/Exiles | Aligned with FarCom system 285 | -10/Exiles | Given EX-Vault access code 297 | -10/Exiles | Opened EX-Vault 308 | -10/Exiles | Build established: Mutant 318 | -10/Exiles | Warned to stay clear of 0b10 Research branches 360 | -10/Exiles | Found Flying Fortress v7 417 | -10/Exiles | Met EX-DEC 491 | -10/Exiles | Discovered new exit (range 10) 503 | -10/Exiles | Left Exiles lab with Flying Fortress v7 503 | -10/Exiles | Entered Mines 530 | -9/Mines | Met a Derelict who couldn't figure out how to use a Trap Extractor 617 | -9/Mines | Met a Derelict shopkeep closing up shop 935 | -9/Mines | Found the Drone Emporium 967 | -9/Mines | Core integrity fell below 20% 972 | -9/Mines | Destroyed by S-10 Pest with Light Assault Rifle Last Messages --------------- 00889_ Kicked K-01 Serf out of the way. 00934_ Connecting with SHOP.Sys... >>Open Door Sealed Doors opened. 00935_ 30-RTA(g): "Well that was anticlimactic. Heard you outside and thought you were from the Merchants Guild. I haven't even officially opened my Drone Emporium yet but am totally ready to tell them where they can shove that C&D." 00937_ 30-RTA(g): "I'm a fan of the free market. Free drones for all! No strings attached!" 00940_ 30-RTA(g) Carbon-fiber Leg severed. 00947_ L-31 Rogue destroyed. 00955_ Kicked G-34 Mercenary. 00957_ Kicked G-34 Mercenary out of the way. 00958_ Kicked G-47 Trooper. 00959_ Kicked G-47 Trooper out of the way. 00961_ Kicked G-34 Mercenary out of the way. 00967_ Ion Engine destroyed. 00971_ S-10 Pest destroyed. Map ----- +----------------------------------------------------+ | ???????????????????????????????# #??? | | ????????????????????####???????# #??? | | ???????????????????## ##??????# #??? | | ??????????????###?## ##?????# #??? | | ?????????????##""## ##????# #??? | | ?????????????#" #X ###### #??? | | ?????????????#" =! #??? | | ?????????????#"! !%* #??? | | ?????????????#" =# = ##### ###??? | | ?????????????##""## = #### ##??? | | ??????????????###?### #?# #??? | | ???????????????????# ### #??? | | ???????????????????# ##??? | | ???????????????????## ### ##???? | | ????????????????????#####?## #????? | | ???????????????????????????## g#????? | | ????????????????????????????##% #????? | | ?????????????????????????????##%#????? | | ??????????????????????????????#%#????? | | ??????????????????????????????#%#????? | | ??????????????????????#########%#????? | | ??????????????????????# """ ##%#????? | | ??????????????????????# """ ##g#????? | | ??????????????????????# """ =s g#????? | | ??????????????????????# s%####????? | | ??????????????????????# s@ [#???????? | | ??????????????????????## #####???????? | | ???????????????????????# ????????????? | | ???????????????????????#?????????????? | | ?????????????????????????????????????? | | ?????????????????????????????????????? | | ?????????????????????????????????????? | | ?????????????????????????????????????? | | ?????????????????????????????????????? | | ?????????????????????????????????????? | | ?????????????????????????????????????? | | ?????????????????????????????????????? | | ?????????????????????????????????????? | | ?????????????????????????????????????? | | ?????????????????????????????????????? | | ?????????????????????????????????????? | | ?????????????????????????????????????? | | ?????????????????????????????????????? | | ?????????????????????????????????????? | | ?????????????????????????????????????? | | ?????????????????????????????????????? | | ?????????????????????????????????????? | | | | | | | +----------------------------------------------------+ Best States ------------- Heat Dissipation 25 Energy Generation 10 Energy Capacity 250 Matter Stores 300 Matter Capacity 300 Sight Range 16 Terrain Scan Density 10 Evasion (%) 55 Item Schematics ----------------- None Robot Schematics ------------------ None Fabricated ------------ Nothing Repaired ---------- Nothing Studied --------- None Alien Tech Used ----------------- None Achievements -------------- None Challenges ------------ None Game ------ Seed TargetJammingDatajack Manual? 0 Play Time 00:13:36 Cumulative 66.6 hours Start 2025.10.31 @ 15:21:51 End 2025.10.31 @ 15:33:02 Sessions 1 Manual Loads 0 Difficulty Rogue Special Mode None Game No. 158 Rogue 158 Adventurer 0 Explorer 0 Win Type - Total 1 Types 1/0/0/0/0/0/0/0/0/0 Lore% 36 Gallery% 38 Achievement% 22 Wizard Run 0 Options --------- Layout 1 ASCII 0 Keyboard 0 Movement Mouse Keybinds 0 Fullscreen 0 Font 24/Smallcaps Map View 59x39 Zoom Use 0% Tactical HUD 1 Map Filters NONE Filters NONE Steam 1 RUN: 557565b0-7535-4a7b-8616-92c2ccc5f7cd